fUSD/lending_fUSD_20240902
["ID","MTS","AMOUNT","RATE_DAILY","PERIOD"]
[336988658,1725286238916,-174.8,0.00014981,2]
[336988660,1725286238926,-650.0,0.00015,2]
[336988662,1725286238937,-497.0,0.00015,2]
[336988664,1725286238946,-160.14315153,0.00015067,2]
[336988666,1725286238955,-1064.46963,0.0001537,2]
[336988668,1725286238965,-160.92,0.00015404,2]
[336988670,1725286238976,-567.51,0.00015412,2]
[336988672,1725286238986,-511.66683738,0.00015443,2]
[336988674,1725286238998,-451.57864314,0.00015443,2]
[336988676,1725286240395,-530.86535505,0.00015443,2]
[336988677,1725286240407,-489.17891229,0.00015443,2]
[336988678,1725286240520,-17294.08025214,0.00015443,2]
[336988679,1725286240529,-169.79,0.00015443,2]
[336988680,1725286240538,-1000.0,0.00015478,2]
[336988681,1725286240547,-2751.0,0.00015487,2]
[336988682,1725286240556,-150.39,0.00015488,2]
[336988683,1725286240566,-4628.36003105,0.00015533,2]
[336988684,1725286240575,-177.44809383,0.00015568,2]
[336988685,1725286240584,-3732.0,0.00015596,2]
[336988686,1725286240593,-5854.0,0.00015596,2]
[336988687,1725286240603,-191.159,0.00015596,2]
[336988688,1725286240612,-1144.0,0.00015596,2]
[336988689,1725286240621,-9022.031,0.00015596,2]
[336988690,1725286240633,-1078.0,0.00015596,2]
[336988691,1725286240642,-280.62659578,0.000156,2]
[336988692,1725286240651,-1747.98,0.00015601,2]
[336988693,1725286240660,-600.0,0.0001564,2]
[336988694,1725286240669,-800.0,0.0001564,2]
[336988695,1725286240678,-4200.0,0.0001564,2]
[336988696,1725286240687,-3900.0,0.0001564,2]
[336988697,1725286240696,-1000.0,0.0001564,2]
[336988698,1725286240705,-200.0,0.0001566,2]
[336988699,1725286240714,-500.0,0.0001566,2]
[336988700,1725286240724,-620.55,0.00015812,2]
[336988701,1725286240733,-166.96,0.00015831,2]
[336988702,1725286240742,-177.43,0.00015831,2]
[336988703,1725286240751,-167.0,0.00015906,2]
[336988704,1725286240760,-169.79,0.00016215,2]
[336988705,1725286240769,-177.44809383,0.0001629,2]
[336988706,1725286240779,-250.0,0.00016391,2]
[336988707,1725286240788,-216.0,0.00016391,2]
[336988708,1725286240797,-267.025,0.00016391,2]
[336988709,1725286240806,-200.0,0.00016391,2]
[336988710,1725286240816,-151.614,0.00016391,2]
[336988711,1725286240825,-190.924,0.00016391,2]
[336988712,1725286240834,-163.289,0.00016391,2]
[336988713,1725286240843,-297.134,0.00016391,2]
[336988714,1725286240855,-263.504,0.00016391,2]
[336988715,1725286240864,-250.0,0.00016391,2]
[336988716,1725286240873,-201.211,0.00016391,2]
[336988717,1725286240883,-170.272,0.00016391,2]
[336988718,1725286240893,-150.237,0.00016391,2]
[336988719,1725286240902,-1259.0,0.00016391,2]
[336988720,1725286240911,-524.392,0.00016391,2]
[336988721,1725286240919,-1545.0,0.00016391,2]
[336988741,1725286241098,-652.771,0.00016391,2]
[336988743,1725286241107,-810.0,0.00016391,2]
[336988745,1725286241116,-150.0,0.00016391,2]
[336988747,1725286241127,-557.0,0.00016391,2]
[336988749,1725286241135,-930.0,0.00016391,2]
[336988751,1725286241144,-558.107,0.00016391,2]
[336988753,1725286241153,-1899.0,0.00016391,2]
[336988755,1725286241163,-1921.0,0.00016391,2]
[336988756,1725286241171,-3340.0,0.00016391,2]
[336988759,1725286241181,-1139.0,0.00016391,2]
[336988761,1725286241190,-248.0,0.00016391,2]
[336988762,1725286241201,-805.0,0.00016391,2]
[336988764,1725286241210,-150.0,0.00016438,2]
[336988766,1725286241219,-161.46,0.00016457,2]
[336988768,1725286241228,-982.0,0.000165,2]
[336988770,1725286241237,-5392.0,0.000166,2]
[336988772,1725286241246,-166.96,0.00016702,2]
[336988774,1725286241256,-177.43,0.00016702,2]
[336988776,1725286241265,-184.69,0.00016712,2]
[336988778,1725286241274,-364.78118377,0.00016753,2]
[336988780,1725286241283,-150.0,0.00016813,2]
[336988782,1725286241292,-4628.36003105,0.00016849,2]
[336988784,1725286241302,-174.8,0.00016853,2]
[336988786,1725286241313,-169.79,0.00016987,2]
[336988789,1725286241323,-700.0,0.00017,2]
[336988791,1725286241334,-600.0,0.0001701,2]
[336988793,1725286241344,-800.0,0.0001701,2]
[336988795,1725286241354,-3900.0,0.0001701,2]
[336988797,1725286241364,-4200.0,0.0001701,2]
[336988799,1725286241375,-1000.0,0.0001701,2]
[336988801,1725286241387,-177.44809383,0.00017012,2]
[336988803,1725286241396,-1202.0,0.000172,2]
[336988805,1725286241405,-528.1034647,0.00017365,2]
[336988806,1725286241415,-1000.0,0.00017412,2]
[336988807,1725286241424,-166.96,0.00017573,2]
[336988808,1725286241435,-177.43,0.00017573,2]
[336988809,1725286241444,-218.0,0.00017592,2]
[336988810,1725286241455,-177.44809383,0.00017734,2]
[336988811,1725286241465,-169.79,0.00017759,2]
[336988812,1725286241476,-1064.46962,0.0001787,2]
[336988813,1725286241486,-159.33,0.00017875,2]
[336988814,1725286241496,-150.0,0.00018,2]
[336988815,1725286241506,-152.0,0.00018002,3]
[336988816,1725286241515,-620.55,0.00018076,2]
[336988817,1725286241525,-800.0,0.00018106,2]
[336988818,1725286241536,-3900.0,0.00018106,2]
[336988819,1725286241545,-4200.0,0.00018106,2]
[336988820,1725286241554,-1000.0,0.00018106,2]
[336988821,1725286241564,-4628.36003105,0.00018165,2]
[336988822,1725286241573,-150.0,0.00018182,2]
[336988823,1725286241583,-161.46,0.00018286,2]
[336988824,1725286241592,-594.09598037,0.0001844,2]
[336988825,1725286241601,-166.96,0.00018444,2]
[336988826,1725286241611,-177.43,0.00018444,2]
[336988827,1725286241620,-177.44809383,0.00018456,2]
[336988828,1725286241629,-159.69,0.00018493,2]
[336988829,1725286241638,-169.79,0.00018531,2]
[336988830,1725286241647,-3732.0,0.00018596,2]
[336988831,1725286241657,-150.0,0.00018596,2]
[336988832,1725286241666,-1144.0,0.00018596,2]
[336988833,1725286241675,-1077.0,0.00018596,2]
[336988834,1725286241684,-475.96902228,0.000187,4]
[336988835,1725286241694,-174.8,0.00018726,2]
[336988836,1725286241703,-750.0,0.00019,2]
[336988837,1725286241714,-150.0,0.000191,2]
[336988838,1725286241723,-150.0742509,0.00019178,2]
[336988839,1725286241732,-500.37114293,0.00019178,2]
[336988840,1725286241742,-500.0,0.00019178,2]
[336988841,1725286241751,-220.36073917,0.00019178,2]
[336988842,1725286241760,-500.0,0.00019178,2]
[336988843,1725286241769,-500.0,0.00019178,2]
[336988844,1725286241778,-500.0,0.00019178,2]
[336988845,1725286241787,-500.0,0.00019178,2]
[336988846,1725286241797,-500.0,0.00019178,2]
[336988847,1725286241806,-500.0,0.00019178,2]
[336988848,1725286241815,-1067.55,0.00019178,2]
[336988849,1725286241824,-1067.55,0.00019178,2]
[336988850,1725286241834,-1067.55,0.00019178,2]
[336988851,1725286241843,-1067.55,0.00019178,2]
[336988852,1725286241852,-1067.55,0.00019178,2]
[336988853,1725286241861,-843.83,0.00019178,2]
[336988854,1725286241871,-843.83,0.00019178,2]
[336988855,1725286241881,-843.83,0.00019178,2]
[336988856,1725286241890,-843.83,0.00019178,2]
[336988857,1725286241899,-843.83,0.00019178,2]
[336988858,1725286241908,-843.83,0.00019178,2]
[336988859,1725286241918,-500.0,0.00019178,2]
[336988860,1725286241927,-504.41243841,0.00019178,2]
[336988861,1725286241936,-504.30973401,0.00019178,2]
[336988862,1725286241946,-500.0,0.00019178,2]
[336988863,1725286241955,-622.87,0.00019178,2]
[336988864,1725286241965,-826.89,0.00019178,2]
[336988865,1725286241973,-826.89,0.00019178,2]
[336988866,1725286241983,-826.89,0.00019178,2]
[336988867,1725286241992,-826.89,0.00019178,2]
[336988868,1725286242002,-826.89,0.00019178,2]
[336988869,1725286242012,-826.89,0.00019178,2]
[336988870,1725286242022,-301.64012354,0.00019178,2]
[336988871,1725286242031,-500.0,0.00019178,2]
[336988872,1725286242043,-500.0,0.00019178,2]
[336988873,1725286242053,-500.0,0.00019178,2]
[336988874,1725286242063,-500.0,0.00019178,2]
[336988875,1725286242072,-198.14,0.00019178,2]
[336988876,1725286242083,-500.0,0.00019178,2]
[336988877,1725286242093,-335.86,0.00019178,2]
[336988878,1725286242104,-500.0,0.00019178,2]
[336988879,1725286242116,-500.0,0.00019178,2]
[336988880,1725286242125,-574.88,0.00019178,2]
[336988881,1725286242135,-515.56,0.00019178,2]
[336988882,1725286242145,-500.0,0.00019178,2]
[336988883,1725286242154,-373.41,0.00019178,2]
[336988884,1725286242163,-500.0,0.00019178,2]
[336988885,1725286242172,-500.0,0.00019178,2]
[336988886,1725286242181,-500.0,0.00019178,2]
[336988887,1725286242191,-316.17,0.00019178,2]
[336988888,1725286242200,-500.0,0.00019178,2]
[336988889,1725286242209,-500.0,0.00019178,2]
[336988890,1725286242218,-325.91530776,0.00019178,2]
[336988891,1725286242227,-500.0,0.00019178,2]
[336988892,1725286242236,-167.74,0.00019178,2]
[336988893,1725286242246,-887.87205822,0.00019178,2]
[336988894,1725286242255,-535.28,0.00019178,2]
[336988895,1725286242266,-500.0,0.00019178,2]
[336988896,1725286242276,-500.0,0.00019178,2]
[336988897,1725286242285,-500.0,0.00019178,2]
[336988898,1725286242295,-600.0,0.00019202,2]
[336988899,1725286242304,-160.92,0.00019255,2]
[336988900,1725286242313,-152.0,0.00019285,4]
[336988901,1725286242322,-1000.0,0.00019347,2]
[336988902,1725286242332,-153.63,0.00019381,2]
[336988903,1725286242341,-1067.55,0.0001939,2]
[336988904,1725286242351,-150.0,0.00019391,2]
[336988905,1725286242360,-150.0,0.00019391,2]
[336988906,1725286242369,-150.0,0.00019391,2]
[336988907,1725286242378,-150.0,0.00019391,2]
[336988908,1725286242392,-150.0,0.00019391,2]
[336988909,1725286242401,-150.0,0.00019391,2]
[336988910,1725286242410,-1259.0,0.00019391,2]
[336988911,1725286242419,-447.0,0.00019391,2]
[336988912,1725286242430,-1545.0,0.00019391,2]
[336988913,1725286242439,-623.0,0.00019391,2]
[336988914,1725286242448,-810.0,0.00019391,2]
[336988915,1725286242458,-150.0,0.00019391,2]
[336988916,1725286242468,-557.0,0.00019391,2]
[336988917,1725286242479,-930.0,0.00019391,2]
[336988918,1725286242488,-552.0,0.00019391,2]
[336988919,1725286242497,-1899.0,0.00019391,2]
[336988920,1725286242507,-1921.0,0.00019391,2]
[336988921,1725286242516,-3340.0,0.00019391,2]
[336988922,1725286242525,-1139.0,0.00019391,2]
[336988923,1725286242535,-248.0,0.00019391,2]
[336988924,1725286242544,-805.0,0.00019391,2]
[336988925,1725286242554,-4628.36003105,0.00019482,2]
[336988926,1725286242563,-1062.18765026,0.000196,5]
[336988927,1725286242572,-57715.66108756,0.000198,10]
[336988928,1725286242586,-49450.0,0.000198,10]
[336988929,1725286242597,-989.22878096,0.000198,10]
[336988930,1725286242607,-952.47687904,0.000198,10]
[336988931,1725286242618,-1289.90576999,0.000198,10]
[336988932,1725286242629,-315.3343428,0.000198,10]
[336988933,1725286242640,-1735.87471476,0.000198,10]
[336988934,1725286242651,-4292.82435836,0.000198,10]
[336988935,1725286242662,-4130.24694756,0.000198,10]
[336988936,1725286242672,-1358.30303484,0.000198,10]
[336988937,1725286242683,-300.0,0.000198,10]
[336988938,1725286242694,-947.27883338,0.000198,10]
[336988939,1725286242713,-1819.99999776,0.000198,10]
[336988940,1725286242724,-7759.32294957,0.000198,10]
[336988959,1725286246362,-177.44809383,0.00019178,2]
[336988960,1725286246372,-2195.89994358,0.000198,10]
[336988961,1725286246383,-552.38754809,0.0001988,2]
[336988962,1725286246591,-11202.77511428,0.0001988,2]
[336988963,1725286246601,-150.0,0.00019883,2]
[336988964,1725286246611,-153.63,0.0001989,2]
[336988965,1725286246620,-272.07680128,0.00019896,2]
[336988966,1725286246629,-160.30138954,0.00019897,2]
[336988967,1725286246638,-500.0,0.00019898,2]
[336988968,1725286246647,-500.0,0.00019898,2]
[336988969,1725286246657,-6500.0,0.00019899,2]
[336988970,1725286246666,-261.646,0.00019899,2]
[336988971,1725286246675,-500.0,0.00019899,2]
[336988972,1725286246684,-1067.55,0.00019899,2]
[336988973,1725286246694,-843.83,0.00019899,2]
[336988974,1725286246704,-826.89,0.00019899,2]
[336988975,1725286246714,-117698.75954279,0.000199,3]
[336988976,1725286246723,-6792.61069886,0.000199,2]
[336988977,1725286246732,-164.6740758,0.00019914,2]
[336988979,1725286246741,-150.0,0.00019938,2]
[336988980,1725286246751,-3896.68234405,0.0001994,10]
[336988981,1725286246760,-159.3943153,0.0001994,10]
[336988982,1725286246769,-150.0,0.0001994,2]
[336988983,1725286246779,-209.0,0.0001995,2]
[336988984,1725286246788,-151.23679885,0.00019964,2]
[336988985,1725286246798,-1220.3502361,0.00019986,2]
[336988986,1725286246808,-1420.2959994,0.00019986,2]
[336988987,1725286246818,-1620.2417626,0.00019986,2]
[336988988,1725286246827,-1820.1875258,0.00019986,2]
[336988989,1725286246837,-2020.133289,0.00019986,2]
[336988990,1725286246847,-4942.47245406,0.0001999,2]
[336988991,1725286246856,-153.63,0.0001999,2]
[336988992,1725286246865,-153.63,0.0001999,2]
[336988993,1725286246875,-153.63,0.0001999,2]
[336988994,1725286246886,-153.63,0.0001999,2]
[336988995,1725286246895,-153.63,0.0001999,2]
[336988996,1725286246904,-153.63,0.0001999,2]
[336988997,1725286246914,-153.63,0.0001999,2]
[336988998,1725286246923,-153.63,0.0001999,2]
[336988999,1725286246932,-153.63,0.0001999,2]
[336989000,1725286246941,-153.63,0.0001999,2]
[336989001,1725286246950,-153.63,0.0001999,2]
[336989002,1725286246959,-153.63,0.0001999,2]
[336989003,1725286247119,-153.63,0.0001999,2]
[336989004,1725286247129,-153.63,0.0001999,2]
[336989005,1725286247139,-153.63,0.0001999,2]
[336989006,1725286247148,-153.63,0.0001999,2]
[336989007,1725286247157,-153.63,0.0001999,2]
[336989008,1725286247166,-153.63,0.0001999,2]
[336989009,1725286247175,-153.63,0.0001999,2]
[336989010,1725286247184,-153.63,0.0001999,2]
[336989011,1725286247194,-153.63,0.0001999,2]
[336989012,1725286247203,-153.63,0.0001999,2]
[336989013,1725286247213,-153.63,0.0001999,2]
[336989014,1725286247223,-153.63,0.0001999,2]
[336989015,1725286247232,-153.63,0.0001999,2]
[336989016,1725286247242,-153.63,0.0001999,2]
[336989017,1725286247252,-153.63,0.0001999,2]
[336989018,1725286247262,-584.48,0.00019995,2]
[336989019,1725286247272,-500.0,0.00019995,2]
[336989020,1725286247282,-2529.7011948,0.00019996,2]
[336989021,1725286247291,-3025.3899629,0.00019996,2]
[336989022,1725286247301,-3521.0787309,0.00019996,2]
[336989023,1725286247310,-4016.767499,0.00019996,2]
[336989024,1725286247319,-3149.37601366,0.00019996,2]
[336989025,1725286247332,-1363.08025344,0.00019996,2]
[336989026,1725286247342,-2196.86868896,0.00019996,2]
[336989038,1725286644221,265.49,0.00025479,120]
[336989040,1725286678562,550.0,0.00011,2]
[336989041,1725286784727,5000.0,0.00027,120]
[336989059,1725287413091,159.18,0.00010959,2]
[336989068,1725287431684,-250.0,0.000123,2]
[336989069,1725287431694,-205.0,0.00012978,2]
[336989070,1725287431703,-304.0,0.00012979,2]
[336989071,1725287431713,-1263.79823905,0.0001298,2]
[336989072,1725287431725,-600.0,0.00013,2]
[336989073,1725287431735,-1607.94443947,0.00013,2]
[336989074,1725287431744,-150.0,0.00013488,2]
[336989075,1725287431753,-159.69,0.00013699,2]
[336989076,1725287431763,-881.92825,0.00014824,2]
[336989077,1725287431773,-300.0,0.00014899,2]
[336989078,1725287431782,-183.97398844,0.000149,2]
[336989079,1725287431791,-1851.34401242,0.000149,2]
[336989080,1725287431801,-1884.47356324,0.000149,2]
[336989081,1725287431812,-40.97444596,0.000149,2]
[336989082,1725287431822,-177.44809383,0.000149,2]
[336989083,1725287431831,-1630.83773361,0.0001499,3]
[336989084,1725287431843,-2018.97890566,0.0001499,3]
[336989085,1725287431854,-1676.12452515,0.0001499,3]
[336989086,1725287431867,-642.52038,0.0001499,3]
[336989087,1725287431879,-628.42,0.0001499,3]
[336989088,1725287431891,-9071.77777833,0.0001499,3]
[336989089,1725287431902,-1285.70283055,0.0001499,3]
[336989090,1725287431915,-357.46371413,0.0001499,3]
[336989091,1725287431926,-424.51363552,0.0001499,3]
[336989092,1725287431937,-293.41476327,0.0001499,3]
[336989093,1725287431950,-2248.6741294,0.0001499,3]
[336989094,1725287431961,-2331.32555382,0.0001499,3]
[336989095,1725287431972,-2852.7448324,0.0001499,3]
[336989096,1725287431983,-1152.75568561,0.0001499,3]
[336989097,1725287431994,-1680.57902925,0.0001499,3]
[336989098,1725287432004,-150.61,0.0001499,2]
[336989099,1725287432013,-157.70896675,0.00014997,2]
[336989100,1725287432023,-1000.0,0.00014999,2]
[336989101,1725287432033,-6322.97096149,0.00015,2]
[336989102,1725287432045,-446.39792605,0.00015,2]
[336989103,1725287432056,-577.5783648,0.00015,2]
[336989104,1725287432067,-1624.35936226,0.00015,2]
[336989106,1725287437575,-2646.2132724,0.00015,2]
[336989107,1725287437587,-1619.69154831,0.00015,2]
[336989108,1725287437615,-1120.66502401,0.00015,2]
[336989109,1725287437625,-1886.88,0.00015,2]
[336989110,1725287437637,-296.50190526,0.00015,2]
[336989111,1725287437652,-702.12138426,0.00015,2]
[336989112,1725287437663,-5586.6814262,0.00015,2]
[336989113,1725287437675,-30339.5,0.00015,2]
[336989114,1725287437686,-411.51164397,0.00015,2]
[336989115,1725287437701,-878.53945113,0.00015,2]
[336989116,1725287437773,-879.14563992,0.00015,2]
[336989117,1725287437784,-14042.43253206,0.00015,2]
[336989118,1725287437795,-12212.22040255,0.00015,2]
[336989119,1725287437886,-343.26358931,0.00015,2]
[336989120,1725287437919,-57105.5652135,0.00015,2]
[336989121,1725287437947,-509.25481238,0.00015,2]
[336989136,1725287439636,-15607.50524251,0.00015,2]
[336989137,1725287439648,-1108.44300768,0.00015,2]
[336989138,1725287439669,-527.39556223,0.00015,2]
[336989139,1725287439680,-2961.95,0.00015,2]
[336989140,1725287439704,-878.52,0.00015,2]
[336989141,1725287439829,-710600.29366493,0.00015,2]
[336989142,1725287439840,-707.12336694,0.00015,2]
[336989143,1725287440028,-337.61092127,0.00015,2]
[336989301,1725287442644,-22982.3562768,0.00015,2]
[336989306,1725287446011,-625.3,0.00015,2]
[336989367,1725287662353,159.11917175,0.00027,120]
[336989368,1725287697654,1150.0,0.00025,60]
[336989374,1725287813006,174.81,0.00025765,120]
[336989375,1725288038946,196.2,0.00010959,2]
[336989376,1725288396216,-573.39,0.00012698,2]
[336989377,1725288487028,550.0,0.00011,2]
[336989378,1725288488158,600.0,0.00013,2]
[336989387,1725288631656,-159.69,0.00013699,2]
[336989388,1725288631666,-521.41,0.00014048,2]
[336989389,1725288631676,-250.0,0.00014048,2]
[336989390,1725288631686,-568.9,0.00014053,2]
[336989391,1725288631722,-1476.78718249,0.00014053,2]
[336989392,1725288631735,-1234.73281751,0.00014053,2]
[336989393,1725288631744,-150.39,0.00014079,2]
[336989394,1725288631754,-250.0,0.00014079,2]
[336989395,1725288631763,-160.92,0.00014198,2]
[336989396,1725288631773,-200.0,0.00014249,2]
[336989397,1725288631783,-300.0,0.00014267,2]
[336989398,1725288631792,-822.62273249,0.00014268,2]
[336989399,1725288631803,-1012.2128544,0.00014268,2]
[336989400,1725288631865,-1065.16441311,0.00014268,2]
[336989401,1725288631876,-600.0,0.00014268,2]
[336989402,1725288631887,-500.0,0.00014268,2]
[336989403,1725288631897,-700.0,0.00014268,2]
[336989404,1725288631906,-2700.0,0.00014268,2]
[336989405,1725288631917,-247.35,0.00014346,2]
[336989406,1725288631927,-1148.36,0.00014387,2]
[336989407,1725288631936,-499.99,0.00014387,2]
[336989408,1725288631946,-1236.81849326,0.0001445,2]
[336989409,1725288631966,-703.31937109,0.0001445,2]
[336989412,1725288637962,-364.55288824,0.0001445,2]
[336989413,1725288637973,-446.30924741,0.0001445,2]
[336989414,1725288637983,-250.0,0.00014555,2]
[336989415,1725288637992,-468.95449888,0.00014583,2]
[336989416,1725288638003,-1214.52265281,0.00014583,2]
[336989417,1725288638096,-1414.80564831,0.00014583,2]
[336989418,1725288638105,-410.18435169,0.00014683,2]
[336989557,1725288639777,-535.74189986,0.00013948,2]
[336989558,1725288639841,-2400.90810014,0.00013948,2]
[336989559,1725288639851,-1589.81564831,0.00014683,2]
[336989560,1725288639860,-150.0,0.00014849,2]
[336989561,1725288639869,-1264.5561,0.0001489,2]
[336989562,1725288639879,-205.6154,0.000149,2]
[336989563,1725288639888,-271.80475155,0.000149,2]
[336989564,1725288639911,-288.46354845,0.000149,2]
[336989565,1725288639921,-166.67060189,0.000149,2]
[336989566,1725288639931,-1666.20961125,0.000149,2]
[336989567,1725288639940,-3000.0,0.00014924,3]
[336989568,1725288639950,-573.39,0.00014961,2]
[336989569,1725288639960,-1089.66173628,0.00014989,2]
[336989570,1725288639969,-1098.17054654,0.00014989,2]
[336989571,1725288639979,-796.4,0.0001499,3]
[336989572,1725288639989,-156.68,0.0001499,2]
[336989573,1725288639999,-1000.0,0.00014999,2]
[336989574,1725288640008,-500.0,0.00014999,2]
[336989575,1725288640018,-500.0,0.00014999,2]
[336989576,1725288640027,-547.95558285,0.00014999,2]
[336989577,1725288640037,-3313.72827174,0.00015,2]
[336989578,1725288640049,-735.51870054,0.00015,2]
[336989579,1725288640061,-834.30484756,0.00015,2]
[336989580,1725288640072,-589.82268,0.00015,2]
[336989581,1725288640083,-733.76282353,0.00015,2]
[336989582,1725288640166,-2392.61447491,0.00015,2]
[336989783,1725288642772,-3531.15848767,0.00015,2]
[336989785,1725288642783,-1590372.86096398,0.00015,2]
[336989786,1725288642793,-856.66904,0.00015,2]
[336989787,1725288642803,-650.0,0.00015,2]
[336989788,1725288642812,-448.92,0.00015085,2]
[336989789,1725288642822,-1000.0,0.00015138,2]
[336989790,1725288642831,-420.0,0.00015626,2]
[336989791,1725288642840,-2900.0,0.00015638,2]
[336989792,1725288642850,-600.0,0.00015638,2]
[336989793,1725288642860,-700.0,0.00015638,2]
[336989794,1725288642869,-2700.0,0.00015638,2]
[336989795,1725288642879,-1666.20961117,0.000159,2]
[336989796,1725288642889,-196.14,0.00015984,2]
[336989797,1725288642901,-1545.0,0.00016,2]
[336989798,1725288642918,-447.0,0.00016,2]
[336989799,1725288642928,-1259.0,0.00016,2]
[336989800,1725288642938,-623.0,0.00016,2]
[336989801,1725288642948,-810.0,0.00016,2]
[336989802,1725288642957,-555.0,0.00016,2]
[336989803,1725288642967,-930.0,0.00016,2]
[336989804,1725288642976,-552.0,0.00016,2]
[336989805,1725288642986,-1894.535,0.00016,2]
[336989806,1725288642995,-150.0,0.00016,2]
[336989807,1725288643005,-2269.028,0.00016,2]
[336989808,1725288643014,-248.0,0.00016,2]
[336989809,1725288643024,-559.636,0.00016,2]
[336989810,1725288643033,-1139.0,0.00016,2]
[336989811,1725288643043,-150.0,0.00016,2]
[336989812,1725288643053,-3732.0,0.00016,2]
[336989813,1725288643062,-274.444,0.00016,2]
[336989814,1725288643072,-247.35,0.00016139,2]
[336989815,1725288643081,-4853.0,0.000164,2]
[336989816,1725288643091,-150.0,0.00016438,2]
[336989817,1725288643100,-1666.20961117,0.000169,2]
[336989818,1725288643110,-700.0,0.00017,2]
[336989819,1725288643119,-2900.0,0.00017008,2]
[336989820,1725288643128,-600.0,0.00017008,2]
[336989821,1725288643137,-500.0,0.00017008,2]
[336989822,1725288643147,-700.0,0.00017008,2]
[336989823,1725288643158,-2700.0,0.00017008,2]
[336989824,1725288643167,-1000.0,0.00017031,2]
[336989825,1725288643177,-587.0,0.00017115,2]
[336989826,1725288643187,-174.81,0.00017177,2]
[336989827,1725288643196,-573.39,0.00017225,2]
[336989828,1725288643209,-3000.0,0.00017234,7]
[336989831,1725288643218,-1089.66173627,0.00017492,2]
[336989833,1725288643228,-1098.17054654,0.00017492,2]
[336989834,1725288643237,-1000.0,0.00017497,2]
[336989835,1725288643247,-196.2,0.00017592,2]
[336989836,1725288643257,-1666.20961117,0.000179,2]
[336989837,1725288643266,-247.35,0.00017933,2]
[336989838,1725288643275,-2900.0,0.00018104,2]
[336989839,1725288643285,-700.0,0.00018104,2]
[336989840,1725288643295,-2700.0,0.00018104,2]
[336989841,1725288643304,-152.0,0.0001843,3]
[336989842,1725288643314,-1666.20961117,0.000189,2]
[336989843,1725288643323,-1000.0,0.00018923,2]
[336989844,1725288643332,-3000.0,0.00018948,8]
[336989845,1725288643342,-1545.0,0.00019,2]
[336989846,1725288643351,-447.0,0.00019,2]
[336989847,1725288643360,-1230.491,0.00019,2]
[336989848,1725288643371,-623.0,0.00019,2]
[336989849,1725288643381,-930.0,0.00019,2]
[336989850,1725288643391,-552.0,0.00019,2]
[336989851,1725288643404,-248.0,0.00019,2]
[336989852,1725288643413,-1139.0,0.00019,2]
[336989853,1725288643423,-2016.435,0.00019,2]
[336989854,1725288643434,-4906.21,0.00019,14]
[336989855,1725288643443,-750.0,0.00019,2]
[336989856,1725288643453,-756.18,0.00019178,2]
[336989857,1725288643463,-756.18,0.00019178,2]
[336989858,1725288643473,-756.18,0.00019178,2]
[336989860,1725288643482,-756.18,0.00019178,2]
[336989861,1725288643492,-756.18,0.00019178,2]
[336989862,1725288643501,-756.18,0.00019178,2]
[336989863,1725288643511,-756.18,0.00019178,2]
[336989864,1725288643520,-756.18,0.00019178,2]
[336989865,1725288643530,-756.18,0.00019178,2]
[336989866,1725288643540,-756.18,0.00019178,2]
[336989867,1725288643549,-500.0,0.00019178,2]